fUSD/lending_fUSD_20241031
["ID","MTS","AMOUNT","RATE_DAILY","PERIOD"]
[341073283,1730333160559,156.36,0.00015342,2]
[341073294,1730333230293,150.0,0.00017605,2]
[341073307,1730333254092,550.0,0.00015,2]
[341073308,1730333255203,600.0,0.00017,2]
[341073309,1730333256299,650.0,0.00019,2]
[341073310,1730333281190,300.0,0.00019725,2]
[341073311,1730333292511,150.0,0.00017605,2]
[341073312,1730333334932,253.99539278,0.00017605,2]
[341073314,1730333401351,300.0,0.00019725,2]
[341073325,1730333431924,-158.06,0.00020068,2]
[341073327,1730333431933,-405.0,0.000295,2]
[341073328,1730333431942,-332.0,0.000295,2]
[341073329,1730333431951,-160.24599389,0.00032877,2]
[341073330,1730333431960,-102.35453704,0.00035736,2]
[341073331,1730333431972,-97.64546296,0.00035736,2]
[341073332,1730333431981,-797.48,0.00039646,2]
[341073333,1730333431990,-593.3,0.00040832,2]
[341073334,1730333431999,-150.0,0.00040894,2]
[341073335,1730333432008,-150.0,0.00041096,2]
[341073336,1730333432017,-71.44501837,0.00041141,2]
[341073337,1730333432028,-1238.62357742,0.00041141,2]
[341073338,1730333432039,-604.98,0.00041141,2]
[341073339,1730333432050,-655.232,0.00041141,2]
[341073340,1730333432063,-9842.55940421,0.00041141,2]
[341073341,1730333432074,-157.0,0.00041223,2]
[341073342,1730333432083,-157.83,0.00041287,120]
[341073343,1730333432092,-261.82,0.00041291,2]
[341073344,1730333432102,-250.0,0.00041364,120]
[341073345,1730333432118,-178.66,0.0004158,2]
[341073346,1730333432130,-250.0,0.00041592,2]
[341073347,1730333432139,-200.0,0.00041644,2]
[341073348,1730333432148,-250.0,0.00041656,2]
[341073349,1730333432158,-797.48,0.0004191,2]
[341073350,1730333432167,-150.0,0.00042013,7]
[341073351,1730333432176,-855.2046,0.0004208,2]
[341073352,1730333432185,-1000.0,0.0004208,2]
[341073353,1730333432195,-1776.4775,0.0004208,7]
[341073354,1730333432205,-7749.44692838,0.0004208,15]
[341073355,1730333432214,-153.4736002,0.0004208,28]
[341073356,1730333432223,-2500.0,0.0004208,2]
[341073357,1730333432232,-1245.0,0.000421,7]
[341073358,1730333432241,-239.69,0.0004217,30]
[341073359,1730333432250,-199.74,0.0004217,30]
[341073360,1730333432259,-150.0,0.00042177,2]
[341073361,1730333432268,-500.0,0.00042179,31]
[341073362,1730333432277,-500.0,0.00042179,31]
[341073363,1730333432286,-535.49259313,0.00042179,31]
[341073364,1730333432295,-176.2085411,0.00042179,31]
[341073365,1730333432305,-343369.6117,0.0004218,2]
[341073367,1730333432314,-281.298,0.0004218,63]
[341073369,1730333432323,-310.08682313,0.0004218,2]
[341073371,1730333432332,-156.99,0.0004227,2]
[341073373,1730333432342,-100000.0,0.0004228,2]
[341073375,1730333432351,-217.0,0.0004228,2]
[341073377,1730333432362,-127671.0549,0.0004228,2]
[341073378,1730333432371,-1000.0,0.00042422,2]
[341073379,1730333432385,-500.0,0.00042729,2]
[341073380,1730333432394,-280.286,0.00042854,2]
[341073381,1730333432403,-2206.0,0.00042854,2]
[341073382,1730333432412,-2000.0,0.00043,30]
[341073383,1730333432421,-2000.0,0.00043,30]
[341073384,1730333432430,-2000.0,0.00043,30]
[341073385,1730333432440,-2000.0,0.00043,30]
[341073386,1730333432449,-167.0,0.00043182,2]
[341073387,1730333432459,-150.0,0.00043259,2]
[341073388,1730333432468,-318.07,0.00044,2]
[341073389,1730333432478,-500.0,0.00044101,3]
[341073390,1730333432487,-500.0,0.0004411,3]
[341073391,1730333432495,-500.0,0.00044119,3]
[341073392,1730333432505,-324.60413948,0.0004412,30]
[341073393,1730333432514,-165.0515,0.00044124,14]
[341073394,1730333432523,-700.0,0.00044124,16]
[341073395,1730333432532,-515.40415836,0.00044124,16]
[341073396,1730333432541,-700.0,0.00044124,16]
[341073397,1730333432550,-700.0,0.00044124,16]
[341073398,1730333432559,-700.0,0.00044124,16]
[341073399,1730333432569,-700.0,0.00044124,16]
[341073400,1730333432578,-700.0,0.00044124,16]
[341073401,1730333432587,-500.0,0.00044128,3]
[341073402,1730333432596,-500.0,0.00044136,3]
[341073403,1730333432605,-500.0,0.00044145,3]
[341073404,1730333432621,-163.4277569,0.00044153,14]
[341073405,1730333432630,-500.0,0.00044154,3]
[341073406,1730333432639,-500.0,0.00044163,3]
[341073407,1730333432648,-797.48,0.00044174,2]
[341073408,1730333432657,-165.0,0.00044317,120]
[341073409,1730333432665,-500.0,0.00044317,30]
[341073410,1730333432674,-500.0,0.00044317,30]
[341073411,1730333432683,-538.01538247,0.00044317,120]
[341073412,1730333432692,-150.0,0.0004434,2]
[341073413,1730333432701,-167.0,0.00044607,2]
[341073414,1730333432710,-7749.44692835,0.00044616,15]
[341073415,1730333432719,-4022.3407338,0.00045,120]
[341073416,1730333432729,-157.83,0.00045379,120]
[341073417,1730333432738,-150.0,0.00045422,2]
[341073418,1730333432747,-153.47360016,0.00045604,28]
[341073419,1730333432756,-2206.0,0.00045854,2]
[341073420,1730333432765,-167.0,0.00046033,2]
[341073421,1730333432774,-954.21,0.000462,7]
[341073422,1730333432782,-797.48,0.00046438,2]
[341073423,1730333432791,-150.0,0.00046503,2]
[341073424,1730333432800,-7749.44692835,0.00047151,15]
[341073425,1730333432809,-167.0,0.00047458,2]
[341073426,1730333432817,-150.0,0.00047585,2]
[341073427,1730333432826,-1000.0,0.00047725,2]
[341073428,1730333432835,-748.13983322,0.00048208,2]
[341073429,1730333432843,-150.0,0.00048666,2]
[341073430,1730333432852,-797.48,0.00048702,2]
[341073431,1730333432862,-2206.0,0.00048854,2]
[341073432,1730333432871,-167.0,0.00048884,2]
[341073433,1730333432879,-153.47360016,0.00049128,28]
[341073434,1730333432888,-165.0515,0.00049252,14]
[341073435,1730333432897,-3000.0,0.000493,2]
[341073436,1730333432906,-700.0,0.00049315,26]
[341073437,1730333432916,-227.31,0.00049315,120]
[341073438,1730333432925,-157.83,0.0004947,120]
[341073439,1730333432934,-7749.44692835,0.00049687,15]
[341073440,1730333432943,-150.0,0.00049748,2]
[341073441,1730333432952,-2025.0,0.0005,19]
[341073442,1730333432962,-4000.0,0.0005,120]
[341073443,1730333432971,-167.0,0.00050309,2]
[341073444,1730333432980,-447.1,0.00050316,2]
[341073445,1730333432989,-167.02,0.0005036,2]
[341073446,1730333432998,-500.0,0.00050424,75]
[341073447,1730333433007,-167.02,0.00050486,2]
[341073448,1730333433017,-167.02,0.00050612,2]
[341073449,1730333433027,-500.0,0.00050666,75]
[341073450,1730333433036,-152.0,0.00050726,3]
[341073451,1730333433045,-150.0,0.00050829,2]
[341073452,1730333433054,-797.48,0.00050966,2]
[341073453,1730333433063,-162.76,0.00051076,2]
[341073454,1730333433073,-2206.0,0.00051854,120]
[341073455,1730333433082,-3000.0,0.000521,2]
[341073456,1730333433091,-7749.44692835,0.00052222,15]
[341073457,1730333433101,-153.47360016,0.00052652,28]
[341073458,1730333433111,-447.1,0.00052832,2]
[341073459,1730333433123,-2765.0,0.00052948,62]
[341073460,1730333433134,-1000.0,0.00053027,120]
[341073461,1730333433144,-797.48,0.00053229,2]
[341073462,1730333433153,-150.0,0.00053377,7]
[341073463,1730333433162,-150.0,0.00053381,7]
[341073464,1730333433170,-150.0,0.00053389,7]
[341073465,1730333433179,-5063.43,0.000534,30]
[341073466,1730333433188,-150.0,0.00053407,7]
[341073467,1730333433198,-150.0,0.00053412,7]
[341073468,1730333433207,-150.0,0.00053414,7]
[341073469,1730333433217,-150.0,0.00053418,7]
[341073470,1730333433227,-150.0,0.00053421,7]
[341073471,1730333433236,-150.0,0.00053431,7]
[341073472,1730333433246,-300.0,0.00053443,7]
[341073473,1730333433255,-150.0,0.00053456,7]
[341073474,1730333433264,-150.0,0.00053469,7]
[341073475,1730333433273,-150.0,0.00053473,7]
[341073476,1730333433282,-150.0,0.00053476,7]
[341073477,1730333433291,-150.0,0.0005348,7]
[341073478,1730333433300,-150.0,0.00053494,7]
[341073479,1730333433310,-150.0,0.00053499,7]
[341073480,1730333433319,-150.0,0.0005351,7]
[341073481,1730333433329,-150.0,0.00053518,7]
[341073482,1730333433339,-150.0,0.00053526,7]
[341073483,1730333433348,-150.0,0.00053531,7]
[341073484,1730333433358,-150.0,0.00053533,7]
[341073485,1730333433367,-150.0,0.00053545,7]
[341073486,1730333433377,-150.0,0.00053555,7]
[341073487,1730333433386,-150.0,0.0005356,7]
[341073488,1730333433395,-157.83,0.00053561,120]
[341073489,1730333433404,-150.0,0.00053562,7]
[341073490,1730333433413,-150.0,0.00053571,7]
[341073491,1730333433423,-150.0,0.00053573,7]
[341073492,1730333433432,-150.0,0.00053573,7]
[341073493,1730333433441,-150.0,0.00053574,7]
[341073494,1730333433450,-300.0,0.00053575,7]
[341073495,1730333433459,-150.0,0.00053576,7]
[341073496,1730333433468,-150.0,0.00053579,7]
[341073497,1730333433478,-159.0,0.00053583,7]
[341073498,1730333433487,-150.0,0.00053587,7]
[341073499,1730333433496,-150.0,0.00053589,7]
[341073500,1730333433504,-152.70615193,0.0005359,31]
[341073501,1730333433514,-150.0,0.0005359,7]
[341073502,1730333433523,-686.9277467,0.0005359,33]
[341073503,1730333433532,-150.0,0.00053592,7]
[341073504,1730333433541,-398.0,0.000536,42]
[341073505,1730333433550,-2404.38126117,0.000536,5]
[341073506,1730333433559,-40700.0,0.000536,120]
[341073507,1730333433568,-1000.0,0.000536,7]
[341073508,1730333433577,-150.0,0.00053605,7]
[341073509,1730333433586,-150.0,0.00053626,7]
[341073510,1730333433595,-150.0,0.0005363,7]
[341073511,1730333433604,-150.0,0.00053633,7]
[341073512,1730333433614,-150.0,0.00053642,7]
[341073513,1730333433623,-150.0,0.00053644,7]
[341073514,1730333433633,-150.0,0.0005365,7]
[341073515,1730333433642,-159.81066219,0.00053673,10]
[341073516,1730333433651,-816.73765882,0.00053689,120]
[341073517,1730333433660,-1000.0,0.00053689,120]
[341073518,1730333433669,-999.0,0.00053689,120]
[341073519,1730333433678,-856645.32578621,0.0005369,120]
[341073520,1730333433734,-568577.3946431,0.0005369,120]
[341073521,1730333433743,-245.25834831,0.0005369,18]
[341073522,1730333433752,-2000.0,0.0005369,15]
[341073523,1730333433761,-10790.24136548,0.0005369,30]
[341073524,1730333433770,-8657.0690662,0.00053701,2]
[341073525,1730333433779,-2556.2680676,0.00053701,2]
[341073526,1730333433788,-4404.7354192,0.00053738,2]
[341073527,1730333433797,-260.16283537,0.00053889,120]
[341073528,1730333433806,-1379.78168005,0.000539,120]
[341073529,1730333433814,-1000.0,0.00053963,120]
[341073530,1730333433824,-1000.0,0.00053999,120]
[341073531,1730333433833,-1000000.0,0.00054,120]
[341073532,1730333433842,-83624.15778644,0.00054,120]
[341073533,1730333433853,-7174.59119563,0.00054,120]
[341073534,1730333433866,-49405.7686827,0.00054,120]
[341073535,1730333433877,-3745.42285565,0.00054,120]
[341073536,1730333433889,-300.0,0.00054,120]
[341073537,1730333433900,-918.93084849,0.00054,120]
[341073538,1730333433912,-2233.56930441,0.00054,120]
[341073539,1730333433923,-1684.98777253,0.00054,120]
[341073540,1730333433935,-15218.034514,0.00054,120]
[341073541,1730333433946,-26187.38984149,0.00054,120]
[341073542,1730333433957,-450.24680677,0.00054,120]
[341073543,1730333433968,-8978.28587915,0.00054,120]
[341073549,1730333438115,-150.0,0.00051911,2]
[341073550,1730333438127,-150.0,0.00052992,2]
[341073551,1730333438137,-3521.9202684,0.00053701,2]
[341073552,1730333438147,-166.45,0.0005399,30]
[341073553,1730333438157,-154.0,0.00054,7]
[341073554,1730333438167,-809.42621815,0.00054,120]
[341073555,1730333438179,-6718.35127964,0.00054,120]
[341073556,1730333438190,-3125.94448,0.00054,120]
[341073557,1730333438202,-628.38999299,0.00054,120]
[341073558,1730333438214,-3152.04600348,0.00054,120]
[341073559,1730333438435,-705.977646,0.00054,120]
[341073575,1730333440061,-527.7552821,0.00054,120]
[341073576,1730333440222,-24127.234698,0.00054,120]
[341073577,1730333440277,-39930.37300905,0.00054,120]
[341073578,1730333440332,-702.51650774,0.00054,120]
[341073579,1730333443526,-20445.86641516,0.00054,120]
[341073580,1730333444127,-1377.53454,0.00054,120]
[341073581,1730333444481,-155.0,0.00054,7]
[341073582,1730333444490,-10521.13058638,0.00054,120]
[341073583,1730333444502,-2248.95674392,0.00054,120]
[341073584,1730333444536,-823.78370028,0.00054,120]
[341073585,1730333444748,-676.96199,0.00054,120]
[341073613,1730333446012,-3488.20500103,0.00054,120]
[341073616,1730333446069,-453.08776319,0.00054,120]
[341073618,1730333446080,-1321.4022825,0.00054,120]
[341073620,1730333446090,-5510.1542467,0.00054,120]
[341073624,1730333446126,-1326.94244686,0.00054,120]
[341073630,1730333446180,-1599.30246319,0.00054,120]
[341073637,1730333446235,-1240.6564181,0.00054,120]
[341073638,1730333446290,-11258.40135739,0.00054,120]
[341073639,1730333446345,-11770.33519488,0.00054,120]
[341073640,1730333462453,300.0,0.00019725,2]
[341073646,1730333581162,300.0,0.00019725,2]
[341073650,1730333762506,161.05,0.00015342,2]
[341073651,1730333821801,300.0,0.00019725,2]
[341073652,1730334121269,300.0,0.00019725,2]
[341073653,1730334151696,168.04,0.00019178,2]
[341073654,1730334181856,300.0,0.00019725,2]
[341073656,1730334308176,10654051.46525267,0.00016,2]
[341073657,1730334308199,8192.0,0.00016,2]
[341073658,1730334308224,20000.0,0.00016,2]
[341073659,1730334308255,150000.0,0.00016,2]
[341073660,1730334308302,11111.0,0.00016,2]
[341073661,1730334308343,100000.0,0.00016,2]
[341073662,1730334308380,100000.0,0.00016,2]
[341073663,1730334308416,100000.0,0.00016,2]
[341073664,1730334308455,2965000.0,0.00016,2]
[341073665,1730334308480,5000.0,0.00016,2]
[341073666,1730334308505,5000.0,0.00016,2]
[341073667,1730334308528,5000.0,0.00016,2]
[341073668,1730334308556,5000.0,0.00016,2]
[341073669,1730334308590,5000.0,0.00016,2]
[341073670,1730334308645,23600.0,0.00016,2]
[341073671,1730334308687,50000.0,0.00016,2]
[341073672,1730334308723,50000.0,0.00016,2]
[341073673,1730334308762,4215019.68280459,0.00016,2]
[341073725,1730334485635,1217846.93086404,0.00015,2]
[341073726,1730334518296,150.0,0.0002,3]
[341073750,1730334632209,-300.0,0.00019725,2]
[341073751,1730334632219,-410.6,0.00035,2]
[341073752,1730334632321,-1557.4547224,0.00035,2]
[341073753,1730334632331,-6223.77845276,0.000368,2]
[341073754,1730334632343,-333.4963984,0.000368,2]
[341073755,1730334632352,-383.762619,0.0004167,2]
[341073756,1730334632363,-4308.83908718,0.0004188,2]
[341073757,1730334632373,-494.4045,0.0004208,2]
[341073758,1730334632382,-142.44865854,0.0004208,2]
[341073759,1730334632432,-723.66,0.0004208,2]
[341073761,1730334638252,-637.40955584,0.0004208,2]
[341073762,1730334638310,-10390.74528562,0.0004208,2]
[341073763,1730334638320,-2292.06474883,0.0004228,2]
[341073764,1730334638370,-207.93525117,0.0004228,2]
[341073765,1730334638379,-336.44645541,0.0004237,30]
[341073766,1730334638392,-495.83354459,0.0004237,30]
[341073767,1730334638401,-156.99,0.0004237,2]
[341073768,1730334638411,-170.61028813,0.00042379,31]
[341073769,1730334638421,-219.87,0.00042379,2]
[341073770,1730334638430,-150.99,0.00042379,2]
[341073771,1730334638439,-12959.20815158,0.0004238,2]
[341073772,1730334638454,-2117.3781606,0.0004238,2]
[341073773,1730334638648,-643.434,0.0004238,2]
[341073783,1730334640328,-751.73552671,0.0004238,2]
[341073784,1730334640494,-6325.36956016,0.0004238,2]
[341073785,1730334640507,-6262.42122009,0.0004238,2]
[341073786,1730334640520,-4478.44625082,0.0004238,2]
[341073787,1730334640533,-8428.56587109,0.0004238,2]
[341073788,1730334640552,-7725.85840981,0.0004238,2]
[341073791,1730334643413,-285.33800009,0.0004238,2]
[341073820,1730334646267,-2231.16556937,0.0004238,2]
[341073821,1730334646499,-196320.23716551,0.0004238,2]
[341073822,1730334646598,-7405.91550632,0.0004238,2]
[341073823,1730334646609,-768.69588606,0.0004238,2]
[341073825,1730334754354,154.81,0.00015342,2]
[341073829,1730335058671,550.0,0.00015,2]
[341073833,1730335223423,1075.0,0.00016,2]
[341073834,1730335324345,158.87,0.00015342,2]
[341073987,1730335832389,-300.0,0.00019725,2]
[341073988,1730335832400,-420.0,0.00021484,2]
[341073989,1730335832412,-162.0,0.000261,2]
[341073990,1730335832423,-190.09,0.00039872,2]
[341073991,1730335832435,-185.82233772,0.0004,2]
[341073992,1730335832447,-832.0,0.0004071,2]
[341073993,1730335832461,-580.47,0.00040872,2]
[341073994,1730335832471,-157.0,0.00041362,2]
[341073995,1730335832481,-302.92,0.00041628,2]
[341073996,1730335832491,-150.0,0.0004173,7]
[341073997,1730335832500,-2275.78,0.0004176,2]
[341073998,1730335832510,-250.0,0.00041862,2]
[341073999,1730335832520,-217.71,0.00041871,2]
[341074000,1730335832530,-300.0,0.00042279,4]
[341074001,1730335832540,-1000.0,0.0004228,2]
[341074002,1730335832550,-1075.809,0.0004228,2]
[341074003,1730335832561,-219.6,0.0004228,2]
[341074004,1730335832571,-7832.8024,0.0004228,2]
[341074005,1730335832581,-6019.98,0.000423,2]
[341074006,1730335832590,-225.038,0.00042379,64]
[341074007,1730335832600,-2971.44763368,0.0004238,17]
[341074008,1730335832610,-21313.5306286,0.0004238,16]
[341074009,1730335832626,-1858.58667087,0.0004238,16]
[341074016,1730335838356,-1000.0,0.00042379,64]
[341074017,1730335838368,-51.27520469,0.0004238,16]
[341074018,1730335838380,-559.12249875,0.0004238,16]
[341074019,1730335838463,-27712.11199948,0.0004238,16]
[341074027,1730335843345,-1335.8606895,0.0004238,16]
[341074028,1730335843358,-1248.9,0.0004238,16]
[341074029,1730335843371,-2732.0830728,0.0004238,16]
[341074031,1730335843381,-3699.8925122,0.0004238,2]
[341074032,1730335843394,-270.52594284,0.0004238,2]
[341074033,1730335843507,-1354.16839969,0.0004238,2]
[341074034,1730335843521,-3088.99310277,0.0004238,2]
[341074035,1730335843617,-16519.426,0.0004238,2]
[341074075,1730335846497,-1835.65358789,0.0004238,2]
[341074078,1730335868446,155.61,0.00015342,2]
[341074082,1730336816549,-500.0,0.0001726,2]
[341074083,1730336816572,-500.0,0.0001726,2]
[341074084,1730336816596,-315.0,0.000261,2]
[341074116,1730337031542,-250.0,0.00036,120]
[341074117,1730337031551,-180.03,0.00036189,44]
[341074118,1730337031560,-300.0,0.00038,120]
[341074119,1730337031570,-181.17395002,0.00039689,2]
[341074120,1730337031581,-424.89604998,0.00039689,2]
[341074121,1730337031590,-211.89648413,0.0004,120]
[341074122,1730337031601,-88.10351587,0.0004,120]
[341074123,1730337031610,-150.0,0.00041096,2]
[341074124,1730337031620,-765.6071618,0.00041152,2]
[341074125,1730337031631,-13906.30168434,0.00041152,2]
[341074126,1730337031642,-9228.09115386,0.00041152,2]
[341074127,1730337031652,-6262.60884614,0.00041258,2]
[341074128,1730337031666,-485.49180705,0.00041258,2]
[341074129,1730337031678,-13705.97934681,0.00041258,2]
[341074130,1730337031687,-157.0,0.00041282,2]
[341074131,1730337031697,-150.0,0.00041357,7]
[341074132,1730337031706,-86.10413537,0.00041383,2]
[341074133,1730337031727,-913.89586463,0.00041383,2]
[341074134,1730337031737,-242.33,0.00041383,2]
[341074135,1730337031746,-350.48,0.00041529,2]
[341074136,1730337031756,-250.0,0.00041572,2]
[341074137,1730337031765,-157.83,0.00041595,120]
[341074138,1730337031775,-410.1,0.00041717,2]
[341074139,1730337031784,-606.07,0.00041953,2]
[341074140,1730337031793,-250.0,0.00042,64]
[341074141,1730337031801,-300.0,0.00042,120]
[341074142,1730337031810,-82.91157942,0.00042,16]
[341074143,1730337031821,-217.08842058,0.00042,16]
[341074144,1730337031832,-5468.85072876,0.0004218,15]
[341074145,1730337031841,-150.0,0.0004219,2]
[341074146,1730337031850,-698.26,0.0004227,30]
[341074147,1730337031860,-1485.72381684,0.0004228,17]
[341074148,1730337031869,-28405.73538235,0.0004228,16]
[341074149,1730337031878,-9692.2948,0.0004228,2]
[341074150,1730337031887,-32175.83133556,0.0004228,2]
[341074151,1730337031900,-1289.25259144,0.0004228,2]
[341074152,1730337031914,-436.530773,0.0004228,2]
[341074153,1730337031924,-2083.42363877,0.0004228,2]
[341074154,1730337031935,-415.47206123,0.0004228,2]
[341074155,1730337031947,-759.4447085,0.0004228,2]
[341074156,1730337031958,-2181.3541915,0.0004228,2]
[341074157,1730337031968,-1000.0,0.0004228,2]
[341074158,1730337031978,-3167.9492,0.0004228,2]
[341074159,1730337031988,-1350.6183,0.0004228,2]
[341074160,1730337031998,-15126.5461,0.0004228,2]
[341074161,1730337032008,-160.91203681,0.0004228,16]
[341074162,1730337032018,-6671.3772,0.0004228,2]
[341074163,1730337032029,-2500.0,0.0004228,2]
[341074164,1730337032038,-243.37826609,0.0004228,28]
[341074165,1730337032048,-157.59331097,0.0004237,2]
[341074166,1730337032058,-193.79403939,0.00042373,2]
[341074167,1730337032068,-17875.5676656,0.00042376,2]
[341074168,1730337032077,-171.18507684,0.00042379,31]
[341074169,1730337032087,-999.0,0.00042379,120]
[341074170,1730337032096,-620288.66453908,0.0004238,2]
[341074172,1730337037530,-852.99136144,0.0004238,2]
[341074173,1730337037541,-1548.56094,0.0004238,2]
[341074174,1730337037703,-2388.47000001,0.0004238,2]
[341074175,1730337037763,-2268.98623405,0.0004238,2]
[341074191,1730337039562,-777.20872381,0.0004238,2]
[341074193,1730337039579,-300.0,0.0004238,2]
[341074201,1730337039642,-679.36729295,0.0004238,2]
[341074202,1730337039653,-277.62782763,0.0004238,2]
[341074207,1730337039707,-1745.2,0.0004238,2]
[341074208,1730337039826,-7362.91986883,0.0004238,2]
[341074209,1730337039888,-8403.38800001,0.0004238,2]
[341074211,1730337042501,-1025.91195611,0.0004238,2]
[341074213,1730337042685,-0.85528259,0.0004238,2]
[341074214,1730337042696,-3041.86660915,0.0004238,2]
[341074215,1730337042709,-1193.28770004,0.0004238,2]
[341074216,1730337042719,-598.0476282,0.0004238,2]
[341074217,1730337042851,-500.57827625,0.0004238,2]
[341074506,1730337045900,-250.0,0.00034,120]
[341074508,1730337045911,-2384.7739615,0.0004238,2]
[341074514,1730337045963,-7405.91550632,0.0004238,2]
[341074516,1730337045975,-2781.57352077,0.0004238,2]
[341074664,1730337047478,150.0,0.00017605,2]
[341074759,1730337062928,158.54,0.00015342,2]
[341074763,1730337089158,150.0,0.00017605,2]
[341074764,1730337121203,300.0,0.00019725,2]
[341074765,1730337121940,420.0,0.00021484,2]
[341074766,1730337122801,192.0,0.00023401,2]
[341074767,1730337131281,150.0,0.00017605,2]
[341074772,1730337173197,150.0,0.00017605,2]
[341074774,1730337908345,7014.46,0.00016,2]
[341074775,1730337908377,2463.0,0.00016,2]
[341074776,1730337908404,100000.0,0.00016,2]
[341074777,1730337908430,100000.0,0.00016,2]
[341074778,1730337908459,7944.39,0.00016,2]
[341074779,1730337908484,2597390.97350633,0.00016,2]
[341074780,1730337929938,5109.08731592,0.000101,2]
[341074782,1730337937089,19750.0,9e-05,2]
[341074783,1730337955850,730.37359272,0.000159,2]
[341074784,1730337992433,406.16793136,0.00015,2]
[341074791,1730338080765,158.87,0.00015342,2]
[341074793,1730338084643,1941649.23398504,0.00015,2]
[341074794,1730338084664,2835130.57361602,0.00015,2]
[341074795,1730338099481,165.96988889,0.0001439,2]
[341074796,1730338099501,165.96988889,0.0001439,2]
[341074797,1730338099521,165.96988889,0.0001439,2]
[341074798,1730338099546,165.96988889,0.0001439,2]
[341074799,1730338099569,165.96988889,0.0001439,2]
[341074800,1730338099592,165.96988889,0.0001439,2]
[341074801,1730338099615,165.96988889,0.0001439,2]
[341074802,1730338099638,165.96988889,0.0001439,2]
[341074803,1730338099659,165.96988889,0.0001439,2]
[341074804,1730338099680,154.45475138,0.0001439,2]
[341074805,1730338112102,-665.06207071,0.00015235,2]
[341074806,1730338114024,479.76527907,0.000129,2]
[341074807,1730338126324,150.0,0.00013,2]
[341074808,1730338126487,62.1853802,0.00013,2]
[341074809,1730338126976,87.8146198,0.000107,2]
[341074810,1730338126996,150.0,0.000107,2]
[341074811,1730338127016,16.99442392,0.000107,2]
[341074812,1730338143710,150.0,0.00015422,2]
[341074835,1730338231843,-731.15094616,0.000253,5]
[341074836,1730338231854,-2903.71306986,0.000253,5]
[341074837,1730338231866,-3807.81671501,0.000253,5]
[341074838,1730338231876,-2228.53585342,0.000253,5]
[341074839,1730338231887,-619.70867741,0.000253,5]
[341074840,1730338231898,-1594.44501813,0.000253,5]
[341074841,1730338231908,-1017.2002,0.000253,5]
[341074842,1730338231988,-474.46635641,0.000253,5]
[341074843,1730338231999,-912.59873716,0.000253,5]
[341074844,1730338232009,-250.0739552,0.000253,5]
[341074845,1730338232131,-3316.23138231,0.000253,5]
[341074846,1730338232140,-160.77206183,0.000349,2]
[341074847,1730338232149,-2855.27335965,0.00035,2]
[341074848,1730338232158,-17073.03360822,0.00037473,2]
[341074849,1730338232167,-9308.46159337,0.00037473,3]
[341074850,1730338232177,-1000.0,0.000394,7]
[341074851,1730338232186,-545.46,0.00040266,2]
[341074852,1730338232195,-1000.0,0.000408,7]
[341074853,1730338232204,-6356.65028277,0.00041567,2]
[341074869,1730338238012,-261.18049166,0.00025173,2]
[341074870,1730338238023,-933.18740034,0.00025173,2]
[341074871,1730338238033,-836.65971723,0.00041567,2]
[341074872,1730338238042,-300.5321289,0.00041579,5]
[341074873,1730338238051,-150.0,0.00041694,2]
[341074874,1730338238061,-4436.99749789,0.00041817,2]
[341074875,1730338238071,-800.0,0.00042,2]
[341074876,1730338238081,-200.0,0.00042,120]
[341074877,1730338238091,-1000.0,0.00042,7]